bitfinex/quotes_BTCUSD_20250803
["timestamp","ask_amount","ask_price","bid_price","bid_amount"]
[1754232520098,0.00617,114000.0,113990.0,0.77699146]
[1754232520797,0.00617,114000.0,113990.0,1.38340292]
[1754232520798,0.001,114000.0,113990.0,1.38340292]
[1754232521260,0.001,114000.0,113990.0,1.38494292]
[1754232521693,0.001,114000.0,113990.0,1.47357576]
[1754232524829,0.001,114000.0,113990.0,0.8642543]
[1754232525046,0.001,114000.0,113990.0,0.8627143]
[1754232525274,0.001,114000.0,113990.0,0.25039284]
[1754232525486,0.001,114000.0,113990.0,0.8547143]
[1754232526551,0.001,114000.0,113990.0,0.8810923]
[1754232530490,0.00317,114000.0,113990.0,0.71193946]
[1754232530705,0.00617,114000.0,113990.0,0.81795146]
[1754232530914,0.00617,114000.0,113990.0,0.82004146]
[1754232531973,0.00617,114000.0,113990.0,0.81504146]
[1754232532188,0.00617,114000.0,113990.0,0.80704146]
[1754232532392,0.08042,114000.0,113990.0,0.80704146]
[1754232532599,0.00617,114000.0,113990.0,0.80704146]
[1754232533756,0.00617,114000.0,113990.0,0.82077546]
[1754232535712,0.08042,114000.0,113990.0,0.82077546]
[1754232536140,0.00617,114000.0,113990.0,0.82077546]
[1754232538528,0.39678768,114030.0,113990.0,0.82077546]
[1754232538739,5.13863284,114020.0,114010.0,0.60432146]
[1754232538963,5.0767574,114020.0,114010.0,0.59932146]
[1754232539383,5.0767574,114020.0,114010.0,0.59132146]
[1754232540032,5.0797574,114020.0,114010.0,0.59232146]
[1754232540469,5.0797574,114020.0,114010.0,0.001]
[1754232540682,5.1550874,114020.0,114010.0,0.60532146]
[1754232540930,5.15608772,114020.0,114010.0,0.002]
[1754232541185,5.15608834,114020.0,114010.0,0.60632146]
[1754232541843,5.16982191,114020.0,114010.0,0.60632146]
[1754232546264,5.16982191,114020.0,114000.0,0.21082]
[1754232546475,5.05,114010.0,114000.0,0.20282]
[1754232546696,0.00517,114010.0,114000.0,0.20491]
[1754232547528,0.00517,114010.0,114000.0,0.20591]
[1754232547740,0.00517,114010.0,114000.0,0.81023146]
[1754232548179,0.00517,114010.0,114000.0,0.80923146]
[1754232548634,0.00517,114010.0,114000.0,0.81023146]
[1754232548836,0.00517,114010.0,114000.0,0.80923146]
[1754232549261,0.01537427,114010.0,114000.0,0.81023146]
[1754232549482,0.01637427,114010.0,114000.0,0.81123146]
[1754232549737,0.01637427,114010.0,114000.0,0.20691]
[1754232549941,0.01637427,114010.0,114000.0,0.81123146]
[1754232553225,0.01986612,114020.0,114000.0,0.81123146]
[1754232553426,5.05,114010.0,114000.0,0.1416]
[1754232553649,5.05,114010.0,114000.0,0.73792146]
[1754232553856,4.830873,114010.0,114000.0,0.73792146]
[1754232554289,9.026075,114010.0,114000.0,0.73692146]
[1754232555035,9.026075,114010.0,114000.0,0.73792146]
[1754232555435,9.026075,114010.0,114000.0,0.81482146]
[1754232555666,9.027075,114010.0,114000.0,0.81482146]
[1754232555865,50.001,114010.0,114000.0,0.81482146]
[1754232556126,4.650668,114010.0,114000.0,0.81482146]
[1754232556797,4.650668,114010.0,114000.0,1.57038708]
[1754232557790,4.650668,114020.0,114000.0,1.56938708]
[1754232558018,4.66709052,114020.0,114010.0,0.67894354]
[1754232558263,4.66909052,114020.0,114010.0,0.75684354]
[1754232559490,4.67109052,114020.0,114010.0,0.75684354]
[1754232559724,4.68482379,114020.0,114010.0,0.75684354]
[1754232559922,4.68282379,114020.0,114010.0,0.76186354]
[1754232560144,4.81730379,114020.0,114010.0,0.76186354]
[1754232560497,4.81730379,114020.0,114010.0,0.75486354]
[1754232560695,4.81630379,114020.0,114010.0,0.88934354]
[1754232561734,4.81730379,114020.0,114010.0,0.88934354]
[1754232562170,4.81730379,114020.0,114010.0,0.89134354]
[1754232562424,4.81830379,114020.0,114010.0,0.89134354]
[1754232564758,4.81830379,114020.0,114010.0,0.81575037]
[1754232565413,4.82651158,114020.0,114010.0,0.81411037]
[1754232567723,4.82651158,114020.0,114010.0,0.80911037]
[1754232569105,4.81277831,114020.0,114010.0,0.80111037]
[1754232569311,4.81277831,114020.0,114010.0,0.79812037]
[1754232570236,4.81277831,114020.0,114010.0,0.19377]
[1754232570445,4.81277831,114020.0,114010.0,0.79812037]
[1754232572015,4.82651101,114020.0,114010.0,0.79812037]
[1754232574110,4.82451101,114020.0,114010.0,0.80111037]
[1754232574530,4.82451101,114020.0,114010.0,0.79611037]
[1754232575955,4.82451101,114020.0,114010.0,0.78811037]
[1754232576157,4.69003101,114020.0,114010.0,0.78811037]
[1754232576338,4.82451101,114020.0,114010.0,0.78811037]
[1754232577743,4.82450442,114020.0,114010.0,0.78811037]
[1754232578149,4.60938242,114020.0,114010.0,0.78811037]
[1754232578379,4.47490242,114020.0,114010.0,0.78811037]
[1754232581709,4.45848688,114020.0,114010.0,0.78311037]
[1754232583208,4.45848688,114020.0,114010.0,0.77511037]
[1754232584730,4.45848688,114020.0,114010.0,0.85052455]
[1754232588766,4.45848688,114020.0,114010.0,0.84552455]
[1754232589091,4.44475377,114020.0,114010.0,0.84552455]
[1754232589290,4.44474947,114020.0,114010.0,0.84552455]
[1754232589933,4.44679947,114020.0,114010.0,0.84552455]
[1754232590132,4.44679947,114020.0,114010.0,0.83752455]
[1754232591962,4.46053229,114020.0,114010.0,0.83752455]
[1754232592460,4.4605317,114020.0,114010.0,0.83453455]
[1754232592671,4.70150624,114020.0,114010.0,0.002]
[1754232592883,4.70150624,114020.0,114010.0,0.81620455]
[1754232593075,4.71791177,114020.0,114010.0,0.81620455]
[1754232593849,4.68931723,114020.0,114010.0,0.81620455]
[1754232594618,4.68613723,114020.0,114010.0,0.81620455]
[1754232596024,4.68613723,114020.0,114010.0,0.81120455]
[1754232597328,4.68613723,114020.0,114010.0,0.13444]
[1754232597567,4.68613723,114020.0,114010.0,0.81420455]
[1754232598248,4.68613723,114020.0,114010.0,0.89562455]
[1754232598479,4.50837317,114020.0,114010.0,0.89562455]
[1754232598709,4.50837323,114020.0,114010.0,0.89562455]
[1754232599670,4.50837323,114020.0,114010.0,0.89566455]
[1754232600136,4.43361323,114020.0,114010.0,0.89566455]
[1754232600592,4.43361323,114020.0,114010.0,0.90084455]
[1754232600801,4.2827677,114020.0,114010.0,0.90080455]
[1754232601682,4.29917493,114020.0,114010.0,0.22104]
[1754232601919,4.29917493,114020.0,114010.0,0.89562455]
[1754232602776,4.43357493,114020.0,114010.0,0.89562455]
[1754232603242,4.4171677,114020.0,114010.0,0.89562455]
[1754232603872,4.4171677,114020.0,114010.0,0.89062455]
[1754232604329,4.4171677,114020.0,114010.0,0.88262455]
[1754232607120,4.7571677,114020.0,114010.0,0.88262455]
[1754232609233,4.74343488,114020.0,114010.0,0.88262455]
[1754232609476,4.74343488,114020.0,114010.0,0.88780455]
[1754232610774,4.60903488,114020.0,114010.0,0.88280455]
[1754232611349,4.60903488,114020.0,114010.0,0.87480455]
[1754232612963,4.60903488,114020.0,114010.0,0.19504]
[1754232613186,4.60903488,114020.0,114010.0,0.87480455]
[1754232613187,4.68467488,114020.0,114010.0,0.87480455]
[1754232615415,4.68467488,114020.0,114010.0,0.87161455]
[1754232618058,4.68467488,114020.0,114010.0,0.86661455]
[1754232618506,4.68467488,114020.0,114010.0,0.85861455]
[1754232622732,4.81907488,114020.0,114010.0,0.04445]
[1754232623053,4.83867853,114020.0,114010.0,0.1344]
[1754232624216,4.83547853,114020.0,114010.0,0.1344]
[1754232625133,4.83547853,114020.0,114010.0,0.1294]
[1754232625472,4.83547853,114020.0,114010.0,0.1214]
[1754232626115,4.86185491,114020.0,114010.0,0.1214]
[1754232627413,4.87902769,114020.0,114010.0,0.1214]
[1754232628993,0.62024569,114020.0,114010.0,0.00219279]
[1754232629181,4.89276084,114020.0,114010.0,0.76122734]
[1754232629409,4.89276084,114020.0,114010.0,0.08446]
[1754232629647,4.89276084,114020.0,114010.0,0.76641734]
[1754232629932,4.89276084,114020.0,114010.0,0.08446]
[1754232630158,4.89276084,114020.0,114010.0,0.08665279]
[1754232630383,4.89276084,114020.0,114010.0,0.67976455]
[1754232630572,4.258782,114010.0,114000.0,0.89659455]
[1754232630805,4.258782,114010.0,114000.0,0.89858455]
[1754232631686,4.260782,114010.0,114000.0,0.89774455]
[1754232631933,4.258782,114010.0,114000.0,0.89974455]
[1754232632168,4.258782,114010.0,114000.0,0.89474455]
[1754232632370,0.002,114010.0,114000.0,0.89474455]
[1754232632828,0.002,114010.0,114000.0,0.88674455]
[1754232633523,0.003,114010.0,114000.0,0.88874455]
[1754232634255,0.003,114010.0,114000.0,0.89194455]
[1754232634912,0.003,114010.0,114000.0,0.21218]
[1754232635139,0.003,114010.0,114000.0,0.89194455]
[1754232635606,0.343,114010.0,114000.0,0.89194455]
[1754232639384,0.343,114010.0,114000.0,0.88694455]
[1754232639847,0.343,114010.0,114000.0,0.87894455]
[1754232641257,0.343,114010.0,114000.0,0.06162]
[1754232641531,0.42579,114010.0,114000.0,0.13836]
[1754232641779,0.46037093,114010.0,114000.0,0.13836]
[1754232642016,4.71915293,114010.0,114000.0,0.13836]
[1754232642232,5.4375143,114010.0,114000.0,0.004]
[1754232642444,5.46610884,114010.0,114000.0,0.004]
[1754232642653,5.48250702,114010.0,114000.0,0.004]
[1754232643662,5.49624133,114010.0,114000.0,0.004]
[1754232643866,5.47984315,114010.0,114000.0,0.004]
[1754232644078,5.49623245,114010.0,114000.0,0.004]
[1754232646260,5.49623245,114010.0,113990.0,0.13350303]
[1754232646474,4.681572,114000.0,113990.0,0.13350303]
[1754232646687,4.258782,113990.0,113980.0,0.89052455]
[1754232646905,4.258782,113990.0,113980.0,0.88462455]
[1754232649072,0.08489,113990.0,113970.0,0.0764]
[1754232649292,0.55925,113990.0,113970.0,0.0764]
[1754232649515,4.258782,113980.0,113970.0,0.07335]
[1754232649720,0.08279,113980.0,113970.0,0.20771]
[1754232649932,4.683672,113980.0,113970.0,0.88747455]
[1754232650172,0.42489,113980.0,113970.0,0.88747455]
[1754232650405,0.42489,113980.0,113970.0,0.89047455]
[1754232650822,0.42489,113980.0,113970.0,0.003]
[1754232651027,4.684672,113980.0,113970.0,0.003]
[1754232651460,4.819032,113980.0,113970.0,0.003]
[1754232651899,4.84542,113980.0,113970.0,0.67976455]
[1754232652329,4.84642,113980.0,113970.0,0.68476455]
[1754232652559,4.84542,113980.0,113970.0,0.68476455]
[1754232652790,4.41953,113980.0,113970.0,0.68176455]
[1754232653027,4.41953,113980.0,113970.0,0.75816455]
[1754232653028,4.42245,113980.0,113970.0,0.75816455]
[1754232653205,4.42345,113980.0,113970.0,0.0804]
[1754232653468,4.42345,113980.0,113970.0,0.07535]
[1754232653684,4.42345,113980.0,113970.0,0.75511455]
[1754232653898,4.42345,113980.0,113970.0,0.74921455]
[1754232654149,4.42153,113980.0,113970.0,0.74921455]
[1754232654984,0.028388,113980.0,113970.0,1.4289791]
[1754232655192,0.002,113980.0,113970.0,1.4289791]
[1754232655406,0.002,113980.0,113970.0,1.4320291]
[1754232656923,0.002,113980.0,113970.0,0.75226455]
[1754232659375,4.258782,113980.0,113970.0,0.75226455]
[1754232659784,4.258782,113980.0,113970.0,1.4320291]
[1754232660781,4.258782,113980.0,113970.0,0.67712782]
[1754232660990,4.258782,113980.0,113970.0,0.66912782]
[1754232661197,4.258782,113980.0,113970.0,0.66412782]
[1754232661383,4.598782,113980.0,113970.0,0.66412782]
[1754232661595,0.34,113980.0,113970.0,0.66412782]
[1754232668170,0.34,113980.0,113970.0,0.65112782]
[1754232670357,0.35373643,113980.0,113970.0,0.65112782]
[1754232670628,0.35373643,113980.0,113970.0,0.64810606]
[1754232671173,0.36965147,113980.0,113970.0,0.64810606]
[1754232672026,0.35591504,113980.0,113970.0,0.64810606]
[1754232675217,0.35591504,113980.0,113970.0,0.64010606]
[1754232675390,0.35591504,113980.0,113970.0,0.63510606]
[1754232677889,0.35591504,113980.0,113970.0,0.76942606]
[1754232680735,0.35591504,113980.0,113970.0,0.84506683]
[1754232682185,0.35591504,113980.0,113970.0,1.52533542]
[1754232682481,0.35591504,113980.0,113970.0,1.52033542]
[1754232683160,0.35591504,113980.0,113970.0,1.51233542]
[1754232689618,0.35591504,113980.0,113970.0,1.50733542]
[1754232690268,0.35591504,113980.0,113970.0,1.49933542]
[1754232691147,0.35591504,113980.0,113970.0,0.81906683]
[1754232692257,0.35591504,113980.0,113970.0,0.89646683]
[1754232693432,0.35591504,113980.0,113970.0,1.57673542]
[1754232696546,0.35591504,113980.0,113970.0,1.57173542]
[1754232696754,0.35788504,113980.0,113970.0,1.57387542]
[1754232696969,0.35591504,113980.0,113970.0,1.57387542]
[1754232697184,0.35591504,113980.0,113970.0,1.66250826]
[1754232697185,0.01591504,113980.0,113970.0,1.66250826]
[1754232697395,0.01591504,113980.0,113970.0,1.65450826]
[1754232697608,0.34,113990.0,113970.0,1.65450826]
[1754232697823,0.34,113990.0,113980.0,0.90533479]
[1754232698033,0.34,113990.0,113980.0,0.98268143]
[1754232698243,0.34,113990.0,113980.0,1.66295002]
[1754232698244,0.01423647,113990.0,113980.0,1.66295002]
[1754232698664,4.764e-05,114000.0,113980.0,0.98588143]
[1754232698872,4.764e-05,114000.0,113980.0,0.09077284]
[1754232698873,0.01419605,113990.0,113980.0,0.09077284]
[1754232699122,0.002,113990.0,113980.0,0.2282062]
[1754232699330,0.002,113990.0,113980.0,0.22601284]
[1754232699542,0.002,113990.0,113980.0,0.30661284]
[1754232700179,0.002,113990.0,113980.0,0.98688143]
[1754232700392,0.001,113990.0,113980.0,0.98688143]
[1754232700597,0.34004764,114000.0,113980.0,0.98588143]
[1754232700803,0.34004764,114000.0,113990.0,0.81670176]
[1754232701017,0.34004764,114000.0,113990.0,0.98133143]
[1754232701201,0.34104764,114000.0,113990.0,0.98133143]
[1754232701637,0.34004764,114000.0,113990.0,0.98133143]
[1754232702051,0.34004764,114000.0,113990.0,1.66479002]
[1754232702052,4.764e-05,114000.0,113990.0,1.66479002]
[1754232702608,0.01475135,114000.0,113990.0,0.98452143]
[1754232702858,4.764e-05,114000.0,113990.0,0.98452143]
[1754232703679,4.764e-05,114000.0,113990.0,0.97952143]
[1754232703886,4.764e-05,114000.0,113990.0,0.98052143]
[1754232704083,0.00204764,114000.0,113990.0,0.98052143]
[1754232704291,0.00204764,114000.0,113990.0,0.97252143]
[1754232704907,0.00204764,114000.0,113990.0,1.65279002]
[1754232706410,0.0167948,114000.0,113990.0,1.65279002]
[1754232710605,0.0167948,114000.0,113990.0,1.64779002]
[1754232711298,0.0167948,114000.0,113990.0,1.63979002]
[1754232711825,0.00204764,114000.0,113990.0,1.65723904]
[1754232714996,0.00297,114020.0,113990.0,1.65723904]
[1754232714997,0.39704524,114040.0,113990.0,1.65723904]
[1754232715267,4.27251415,114030.0,114020.0,0.68026859]
[1754232715525,4.27447415,114030.0,114020.0,0.81442859]
[1754232716617,4.28904597,114030.0,114020.0,0.81442859]
[1754232717030,4.35667597,114030.0,114020.0,0.81442859]
[1754232717870,4.35967597,114030.0,114020.0,0.81542859]
[1754232718075,4.35967597,114030.0,114020.0,0.81042859]
[1754232718515,4.36067597,114030.0,114020.0,0.80242859]
[1754232719563,4.35767597,114030.0,114020.0,0.80142859]
[1754232719990,4.35867597,114030.0,114020.0,0.80242859]
[1754232722378,4.35867597,114030.0,114020.0,0.12216]
[1754232723459,4.36684763,114030.0,114020.0,0.12216]
[1754232725210,4.36684763,114030.0,114020.0,0.11716]
[1754232725457,4.38320188,114030.0,114020.0,0.11716]
[1754232725673,4.38320188,114030.0,114020.0,0.10916]
[1754232727097,4.19551888,114030.0,114020.0,0.10916]
[1754232727992,4.19551888,114030.0,114020.0,0.001]
[1754232728205,4.19553154,114030.0,114020.0,0.001]
[1754232729320,4.19553154,114030.0,114020.0,0.68126859]
[1754232729823,4.13087154,114030.0,114020.0,0.75740859]
[1754232730265,4.13087154,114030.0,114020.0,0.75945859]
[1754232731135,4.13087832,114030.0,114020.0,0.75945859]
[1754232731496,4.12790832,114030.0,114020.0,0.75945859]
[1754232732083,4.12790832,114030.0,114020.0,0.07819]
[1754232732288,4.13099832,114030.0,114020.0,0.76065118]
[1754232732511,4.13099832,114030.0,114020.0,0.75045859]
[1754232733890,4.13099832,114030.0,114020.0,0.06814]
[1754232734109,4.13099832,114030.0,114020.0,0.75060118]
[1754232734366,4.20479832,114030.0,114020.0,0.06814]
[1754232735078,4.20479832,114030.0,114020.0,0.75060118]
[1754232735302,4.20479832,114030.0,114020.0,0.74840859]
[1754232736193,4.13099832,114030.0,114020.0,0.74840859]
[1754232736415,4.13099832,114030.0,114020.0,0.06814]
[1754232736643,4.13099832,114030.0,114020.0,0.75060118]
[1754232736864,4.13099832,114030.0,114020.0,0.74840859]
[1754232737840,4.13099832,114030.0,114020.0,0.75052859]
[1754232738073,0.05680932,114030.0,114020.0,0.75052859]
[1754232738734,0.05680932,114030.0,114020.0,0.75351859]
[1754232739361,0.05680932,114030.0,114020.0,0.74851859]
[1754232739800,0.05680932,114030.0,114020.0,0.74051859]
[1754232740441,0.05989932,114030.0,114020.0,0.73540859]
[1754232745549,0.04616717,114030.0,114020.0,0.73540859]
[1754232746386,0.04616717,114030.0,114020.0,0.73040859]
[1754232746801,0.04616717,114030.0,114020.0,0.72240859]
[1754232747235,0.04616717,114030.0,114020.0,0.72452859]
[1754232747444,0.04616717,114030.0,114020.0,0.04426]
[1754232747687,0.04616717,114030.0,114020.0,0.72672118]
[1754232747893,0.04616717,114030.0,114020.0,0.72452859]
[1754232748309,0.02979348,114030.0,114020.0,0.72452859]
[1754232748521,0.04618909,114030.0,114020.0,0.72452859]
[1754232750459,4.071099,114030.0,114020.0,0.72452859]
[1754232750671,4.071099,114030.0,114020.0,0.72751859]
[1754232751478,4.071099,114030.0,114020.0,0.04725]
[1754232751682,4.071099,114030.0,114020.0,0.72751859]
[1754232752976,0.01436762,114030.0,114020.0,0.72751859]
[1754232753363,4.071099,114030.0,114020.0,0.72751859]
[1754232753585,4.071099,114030.0,114020.0,0.72251859]
[1754232753770,4.071099,114030.0,114020.0,0.71451859]
[1754232757380,0.02535949,114030.0,114020.0,0.71451859]
[1754232757736,4.071099,114030.0,114020.0,0.71451859]
[1754232758076,4.071099,114030.0,114020.0,0.84855859]
[1754232760612,4.071099,114030.0,114020.0,0.84355859]
[1754232760992,4.071099,114030.0,114020.0,0.83555859]
[1754232762014,4.071099,114030.0,114020.0,0.92419143]
[1754232762397,4.071099,114030.0,114020.0,1.60446002]
[1754232762398,4.09734425,114030.0,114020.0,1.60446002]
[1754232762607,0.02624525,114030.0,114020.0,0.92419143]
[1754232762826,0.35373114,114040.0,114020.0,0.92419143]
[1754232763028,4.44942709,114040.0,114030.0,0.81646099]
[1754232763230,4.43302912,114040.0,114030.0,0.89381859]
[1754232764312,4.09311273,114040.0,114030.0,0.89381859]
[1754232764532,4.42491375,114040.0,114030.0,0.89281859]
[1754232765378,4.42491375,114040.0,114030.0,0.89381859]
[1754232765604,4.4370503,114040.0,114030.0,0.89381859]
[1754232767750,4.4370503,114040.0,114030.0,0.88881859]
[1754232768019,4.4370503,114040.0,114030.0,0.88081859]
[1754232768438,4.4380503,114040.0,114030.0,0.20055]
[1754232768660,4.4380503,114040.0,114030.0,0.88081859]
[1754232770080,0.3669513,114040.0,114030.0,0.88081859]
[1754232770947,0.4440013,114040.0,114030.0,0.20055]
[1754232771175,0.4440013,114040.0,114030.0,0.88081859]
[1754232775183,0.4440013,114040.0,114030.0,0.87281859]
[1754232775905,0.4440013,114040.0,114030.0,0.86781859]
[1754232777920,0.3669513,114040.0,114030.0,0.86781859]
[1754232779424,0.3669513,114040.0,114030.0,0.95645143]
[1754232779660,0.0269513,114040.0,114030.0,1.63672002]
[1754232782183,0.0269513,114040.0,114030.0,1.62872002]
[1754232783109,0.0269513,114040.0,114030.0,1.62372002]
[1754232785453,0.00108361,114040.0,114030.0,1.62372002]
[1754232786084,0.00108361,114040.0,114030.0,1.64116904]
[1754232786372,0.00108361,114040.0,114030.0,1.66753404]
[1754232787967,0.02679062,114040.0,114030.0,1.66753404]
[1754232789249,0.02679062,114040.0,114030.0,1.65953404]
[1754232790078,0.02679062,114040.0,114030.0,1.65453404]
[1754232790288,0.02679062,114040.0,114030.0,1.57353404]
[1754232790511,0.02679062,114040.0,114030.0,1.70745404]
[1754232793301,0.02679062,114040.0,114030.0,1.57353404]
[1754232793510,0.02679062,114040.0,114030.0,1.70741404]
[1754232794467,0.02679062,114040.0,114030.0,0.19554784]
[1754232794679,0.10464062,114040.0,114030.0,0.09476284]
[1754232794895,0.10464062,114040.0,114030.0,0.22351284]
[1754232795301,0.10464062,114040.0,114030.0,0.90378143]
[1754232796343,0.10464062,114040.0,114030.0,0.89578143]
[1754232796765,0.10464062,114040.0,114030.0,0.21551284]
[1754232797165,0.10464062,114040.0,114030.0,0.21051284]
[1754232798220,0.10464062,114040.0,114030.0,0.07663284]
[1754232798475,0.10464062,114040.0,114030.0,0.21051284]
[1754232799521,0.11836933,114040.0,114030.0,0.21051284]
[1754232801830,0.11836933,114040.0,114030.0,0.21366284]
[1754232802263,0.11836933,114040.0,114030.0,0.28690284]
[1754232802863,0.11836933,114040.0,114030.0,0.28901284]
[1754232803997,0.11836933,114040.0,114030.0,0.28101284]
[1754232804198,0.11836933,114040.0,114030.0,0.88011343]
[1754232805442,0.10464062,114040.0,114030.0,0.88011343]
[1754232807130,0.10464062,114040.0,114030.0,0.27601284]
[1754232807333,0.10464062,114040.0,114030.0,0.88011343]
[1754232808744,0.02877062,114040.0,114030.0,0.88011343]
[1754232809398,4.071099,114050.0,114030.0,0.88011343]
[1754232810639,4.073099,114050.0,114030.0,0.88111343]
[1754232810846,4.071099,114040.0,114030.0,0.88111343]
[1754232811045,4.071099,114040.0,114030.0,0.87311343]
[1754232811254,4.071099,114040.0,114030.0,0.86811343]
[1754232812052,0.002,114050.0,114030.0,0.86711343]
[1754232812053,4.071099,114050.0,114030.0,0.86711343]
[1754232812310,4.071099,114050.0,114030.0,0.79172343]
[1754232812492,4.071099,114050.0,114040.0,0.07639]
[1754232812723,4.071099,114050.0,114040.0,0.68049059]
[1754232812901,4.071099,114050.0,114040.0,0.07639]
[1754232813257,4.072099,114050.0,114040.0,0.07639]
[1754232813913,4.071099,114050.0,114040.0,0.07639]
[1754232814267,4.072099,114050.0,114040.0,0.07639]
[1754232814760,4.071099,114050.0,114040.0,0.07639]
[1754232814971,4.072099,114050.0,114040.0,0.07639]
[1754232815182,4.073099,114050.0,114040.0,0.07639]
[1754232817869,4.08682726,114050.0,114040.0,0.07639]
[1754232818093,4.08891726,114050.0,114040.0,0.06839]
[1754232818315,4.075189,114050.0,114040.0,0.06839]
[1754232818538,4.075189,114050.0,114040.0,0.06339]
[1754232819378,4.075189,114050.0,114030.0,0.73019774]
[1754232819599,4.132159,114050.0,114040.0,0.13384]
[1754232821150,4.131159,114050.0,114040.0,0.13384]
[1754232821362,4.130159,114050.0,114040.0,0.13384]
[1754232821575,4.132159,114050.0,114040.0,0.13384]
[1754232821983,4.130159,114050.0,114040.0,0.13384]
[1754232822212,4.132159,114050.0,114040.0,0.13384]
[1754232822424,4.14274622,114050.0,114040.0,0.13384]
[1754232822628,3.95248322,114050.0,114040.0,0.13384]
[1754232823034,3.95009322,114050.0,114040.0,0.13384]
[1754232823244,3.880836,114040.0,114030.0,0.80658774]
[1754232823453,3.880836,114040.0,114030.0,0.94241774]
[1754232825238,3.880836,114040.0,114030.0,0.8927849]
[1754232825442,3.880836,114040.0,114030.0,0.8877849]
[1754232825682,0.00202,114040.0,114030.0,0.8877849]
[1754232825886,0.00504,114040.0,114030.0,0.13484]
[1754232826123,0.06357,114040.0,114030.0,0.1348]
[1754232826334,4.6321692,114040.0,114030.0,0.1348]
[1754232826550,4.9721692,114040.0,114030.0,0.001]
[1754232826770,5.01717065,114040.0,114030.0,0.001]
[1754232828437,5.04354465,114040.0,114030.0,0.001]
[1754232828863,4.96829125,114040.0,114030.0,0.001]
[1754232829517,4.98202161,114040.0,114030.0,0.001]
[1754232830622,4.96562554,114040.0,114030.0,0.001]
[1754232832175,4.96562554,114040.0,114020.0,0.20129]
[1754232832372,3.880836,114030.0,114020.0,0.20129]
[1754232832589,0.00504,114030.0,114020.0,0.06945]
[1754232834452,0.00202,114030.0,114020.0,0.07144]
[1754232834664,3.880836,114030.0,114020.0,0.6788915]
[1754232834877,3.880836,114030.0,114020.0,0.07458]
[1754232835319,3.880836,114030.0,114020.0,0.07658]
[1754232835529,0.001,114030.0,114020.0,0.07858]
[1754232835756,0.001,114030.0,114020.0,0.68508409]
[1754232835964,0.001,114030.0,114020.0,0.6828915]
[1754232839246,0.001,114030.0,114020.0,0.6748915]
[1754232839662,0.001,114030.0,114020.0,0.6698915]
[1754232842765,0.001,114030.0,114020.0,0.75852434]
[1754232846347,0.001,114030.0,114020.0,0.75052434]
[1754232847027,0.001,114030.0,114020.0,0.74552434]
[1754232850744,0.001,114030.0,114020.0,0.82082295]
[1754232853395,0.001,114030.0,114020.0,0.81282295]
[1754232854019,0.001,114030.0,114020.0,0.80782295]
[1754232860654,0.001,114030.0,114020.0,0.79982295]
[1754232861093,0.001,114030.0,114020.0,0.79482295]
[1754232862922,0.001,114030.0,114020.0,0.92858295]
[1754232867637,0.001,114030.0,114020.0,0.92058295]
[1754232868326,0.001,114030.0,114020.0,0.91558295]
[1754232874804,0.001,114030.0,114020.0,0.90798295]
[1754232875188,0.001,114030.0,114020.0,0.90298295]
[1754232876700,0.001,114030.0,114020.0,0.97643295]
[1754232881869,0.001,114030.0,114020.0,0.96843295]
[1754232882384,0.001,114030.0,114020.0,0.96343295]
[1754232885142,0.07836,114030.0,114020.0,0.13372]
[1754232885516,3.880836,114020.0,114010.0,0.13372]
[1754232885724,0.07736,114020.0,114010.0,0.22235284]
[1754232885951,0.07736,114020.0,114010.0,0.13372]
[1754232886173,4.63780611,114020.0,113990.0,0.07348]
[1754232886380,3.956226,114010.0,114000.0,0.90196295]
[1754232886603,0.07736,114010.0,114000.0,0.90196295]
[1754232888109,0.07836,114010.0,114000.0,0.90396295]
[1754232888743,0.07936,114010.0,114000.0,0.89796295]
[1754232889309,0.09309159,114010.0,114000.0,0.89296295]
[1754232891892,0.09309159,114010.0,114000.0,0.21335284]
[1754232892095,0.09309159,114010.0,114000.0,0.89296295]
[1754232894143,0.09309159,114010.0,114000.0,0.96644295]
[1754232895187,0.09309159,114010.0,114000.0,0.96144295]
[1754232896009,0.09309159,114010.0,114000.0,0.89081011]
[1754232897425,0.02082159,114010.0,114000.0,0.89286011]
[1754232897670,0.02082159,114010.0,114000.0,0.88786011]
[1754232899973,0.02082159,114010.0,114000.0,0.88286011]
[1754232900828,0.02082159,114010.0,114000.0,0.20325]
[1754232901031,0.02082159,114010.0,114000.0,0.88286011]
[1754232902957,0.02082159,114010.0,114000.0,0.87486011]
[1754232903388,0.02082159,114010.0,114000.0,0.89282011]
[1754232904931,0.02082159,114010.0,114000.0,0.88782011]
[1754232907498,0.09309159,114010.0,113980.0,0.09708798]
[1754232907699,0.07539,114000.0,113990.0,0.88677011]
[1754232907936,0.07736,114000.0,113990.0,0.88677011]
[1754232908087,0.00509,114000.0,113990.0,0.88882011]
[1754232908703,0.00197,114000.0,113990.0,0.88882011]
[1754232908913,0.00197,114000.0,113990.0,0.88890372]
[1754232909554,0.001,114000.0,113990.0,0.89190372]
[1754232909779,0.08912159,114010.0,113990.0,0.88890372]
[1754232909988,0.08912159,114010.0,114000.0,0.12568]
[1754232910216,0.09109159,114010.0,114000.0,0.19916]
[1754232910432,0.09109159,114010.0,114000.0,0.87877011]
[1754232911695,0.09209159,114010.0,114000.0,0.87977011]
[1754232912221,0.09209159,114010.0,114000.0,0.87477011]
[1754232913579,0.09209159,114010.0,114000.0,0.19516]
[1754232914280,0.09309159,114010.0,114000.0,0.19616]
[1754232917012,0.09309159,114010.0,114000.0,0.18816]
[1754232917229,0.09309159,114010.0,114000.0,0.86777011]
[1754232918503,3.880836,114010.0,114000.0,0.86982011]
[1754232918711,0.00197,114010.0,114000.0,0.87283011]
[1754232919149,0.00197,114010.0,114000.0,0.86783011]
[1754232919990,0.00197,114010.0,114000.0,0.18822]
[1754232921933,0.01570258,114010.0,114000.0,0.18822]
[1754232923320,0.35570258,114010.0,114000.0,0.18822]
[1754232923525,0.35570258,114010.0,114000.0,0.86783011]
[1754232924641,0.35570258,114010.0,114000.0,0.85983011]
[1754232925714,0.87004011,114020.0,114000.0,0.85983011]
[1754232925916,3.880836,114010.0,114000.0,0.85983011]
[1754232926319,3.880836,114010.0,114000.0,0.85483011]
[1754232926546,3.880836,114010.0,114000.0,0.85383011]
[1754232926944,3.880836,114010.0,114000.0,0.85483011]
[1754232927146,3.880836,114010.0,114000.0,0.17522]
[1754232927560,3.880836,114010.0,114000.0,0.17422]
[1754232927894,0.001,114010.0,114000.0,0.85483011]
[1754232928550,0.001,114010.0,114000.0,0.17522]
[1754232928756,0.001,114010.0,114000.0,0.85483011]